[Event "DVM U20 2019"]
[Site "Braunschweig"]
[Date "2019.12.28"]
[Round "4"]
[White "Waffenschmidt, Lars"]
[Black "Wu, Luka"]
[Result "0-1"]
[ECO "C54"]
[WhiteElo "1885"]
[BlackElo "2073"]
[Annotator "NA"]
[PlyCount "64"]
[EventDate "2019.12.27"]
[EventType "team-tourn"]
[EventRounds "7"]
[EventCountry "GER"]
[SourceTitle "playchess.com"]
[Source "ChessBase"]
[SourceQuality "1"]
[WhiteTeam "SK Bebenhausen"]
[BlackTeam "OSG Baden-Baden"]
[TimeControl "40/5400+30:1800+30"]

1. e4 {[%emt 0:00:00]} e5 {[%emt 0:00:00]} 2. Nf3 {[%emt 0:00:02]} Nc6 {[%emt 0:00:00]} 3. Bc4 {[%emt 0:00:34]} Bc5 {[%emt 0:00:00]} 4. c3 {[%emt 0:01:06]} Nf6 {[%emt 0:00:06]} 5. d4 {[%emt 0:00:58]} exd4 {[%emt 0:00:08]} 6. cxd4 {[%emt 0:01:01]} Bb4+ {[%emt 0:00:14]} 7. Kf1 {[%emt 0:01:22]} d5 {[%emt 0:00:41]} 8. exd5 {[%emt 0:00:38]} Nxd5 {[%emt 0:00:09]} 9. Nc3 {[%emt 0:00:35]} Be6 {[%emt 0:00:17]} 10. Qd3 {[%emt 0:01:42]} Qd7 {[%emt 0:00:27]} 11. Bb5 {[%emt 0:07:17]} O-O {[%emt 0:02:59]} 12. Be3 {[%emt 0:12:46]} a6 {[%emt 0:04:28]} 13. Ba4 {[%emt 0:04:32]} Nb6 {[%emt 0:01:30]} 14. Bb3 {[%emt 0:01:23]} Bf5 {[%emt 0:00:51]} 15. Qe2 {[%emt 0:03:12]} Rae8 {[%emt 0:02:30]} 16. h3 {[%emt 0:06:21]} Na5 {[%emt 0:01:11]} 17. Bc2 {[%emt 0:01:44]} Nac4 {[%emt 0:00:18]} 18. Bb3 {[%emt 0:04:50]} Na5 {[%emt 0:05:12]} 19. Bc2 {[%emt 0:02:12]} Nbc4 {[%emt 0:04:08]} 20. Re1 {[%emt 0:06:02]} b5 {[%emt 0:07:08]} 21. Kg1 {[%emt 0:07:24]} c5 {[%emt 0:03:19]} 22. Kh2 {[%emt 0:10:15]} Nc6 {[%emt 0:09:12]} 23. d5 {[%emt 0:13:16]} Bxc3 {[%emt 0:01:50]} 24. bxc3 {[%emt 0:00:21]} Qxd5 {[%emt 0:00:33]} 25. Rd1 {[%emt 0:05:47]} Qe6 {[%emt 0:00:45]} 26. Rhe1 {[%emt 0:02:44]} Nxe3 {[%emt 0:04:41]} 27. fxe3 {[%emt 0:00:21]} Bxc2 {[%emt 0:00:26]} 28. Qxc2 {[%emt 0:00:07]} h6 {[%emt 0:00:11]} 29. e4 {[%emt 0:01:12]} Rd8 {[%emt 0:01:14]} 30. Qf2 {[%emt 0:02:58]} Qc4 {[%emt 0:01:39]} 31. Qe3 {[%emt 0:01:09] normal} Rfe8 {[%emt 0:02:45]} 32. Rxd8 {[%emt 0:01:02]} Rxd8 {[%emt 0:00:11] normal} 0-1

[Event "DVM U20 2019"]
[Site "Braunschweig"]
[Date "2019.12.28"]
[Round "4"]
[White "Fuhrmann, Aeke"]
[Black "Gabler, Eric"]
[Result "1/2-1/2"]
[ECO "A20"]
[WhiteElo "1879"]
[BlackElo "2064"]
[Annotator "NA"]
[PlyCount "41"]
[EventDate "2019.12.27"]
[EventType "team-tourn"]
[EventRounds "7"]
[EventCountry "GER"]
[SourceTitle "playchess.com"]
[Source "ChessBase"]
[SourceQuality "1"]
[WhiteTeam "Hamburger SK"]
[BlackTeam "SC Bavaria Regensburg"]
[TimeControl "40/5400+30:1800+30"]

1. c4 {[%emt 0:00:00]} e5 {[%emt 0:00:00]} 2. g3 {[%emt 0:00:00]} Nf6 {[%emt 0:00:05]} 3. Bg2 {[%emt 0:00:00]} Nc6 {[%emt 0:00:16]} 4. Nc3 {[%emt 0:00:00]} g6 {[%emt 0:03:34]} 5. d3 {[%emt 0:01:31]} Bg7 {[%emt 0:00:21]} 6. e4 {[%emt 0:00:07]} O-O {[%emt 0:00:52]} 7. Nge2 {[%emt 0:00:06]} d6 {[%emt 0:00:41]} 8. O-O {[%emt 0:00:15]} Ne8 {[%emt 0:25:26]} 9. Nd5 {[%emt 0:10:58]} Be6 {[%emt 0:12:29]} 10. h3 {[%emt 0:02:41]} Qd7 {[%emt 0:01:05]} 11. Kh2 {[%emt 0:00:06]} f5 {[%emt 0:01:25]} 12. Be3 {[%emt 0:02:11]} Nd8 {[%emt 0:06:43]} 13. Rb1 {[%emt 0:14:32]} c6 {[%emt 0:02:52]} 14. Ndc3 {[%emt 0:00:44]} Nc7 {[%emt 0:00:12]} 15. f4 {[%emt 0:16:50]} Nf7 {[%emt 0:07:24]} 16. b3 {[%emt 0:09:30] normal} d5 {[%emt 0:15:41] normal} 17. cxd5 {[%emt 0:01:28]} cxd5 {[%emt 0:00:07] normal} 18. fxe5 {[%emt 0:01:12] normal} dxe4 {[%emt 0:02:45]} 19. dxe4 {[%emt 0:00:22] normal} Bxe5 {[%emt 0:02:38] normal} 20. Qxd7 {[%emt 0:01:30]} Bxd7 {[%emt 0:00:12]} 21. exf5 {[%emt 0:00:51] normal} 1/2-1/2

[Event "DVM U20 2019"]
[Site "Braunschweig"]
[Date "2019.12.28"]
[Round "4"]
[White "Liess, Alexander"]
[Black "Foo, Tzun Hong"]
[Result "1-0"]
[ECO "E16"]
[WhiteElo "1852"]
[BlackElo "1829"]
[Annotator "NA"]
[PlyCount "97"]
[EventDate "2019.12.27"]
[EventType "team-tourn"]
[EventRounds "7"]
[EventCountry "GER"]
[SourceTitle "playchess.com"]
[Source "ChessBase"]
[SourceQuality "1"]
[WhiteTeam "SC Bavaria Regensburg"]
[BlackTeam "Hamburger SK"]
[TimeControl "40/5400+30:1800+30"]

1. d4 {[%emt 0:00:00]} Nf6 {[%emt 0:00:00]} 2. c4 {[%emt 0:00:00]} e6 {[%emt 0:00:00]} 3. Nf3 {[%emt 0:00:00]} b6 {[%emt 0:00:50]} 4. g3 {[%emt 0:00:12]} Bb7 {[%emt 0:00:10]} 5. Bg2 {[%emt 0:00:49]} Bb4+ {[%emt 0:01:44]} 6. Bd2 {[%emt 0:01:33]} Be7 {[%emt 0:02:06]} 7. O-O {[%emt 0:03:25]} O-O {[%emt 0:01:53]} 8. Nc3 {[%emt 0:02:19]} d5 {[%emt 0:02:36]} 9. Ne5 {[%emt 0:16:04]} c6 {[%emt 0:03:56]} 10. Bf4 {[%emt 0:15:23]} Nbd7 {[%emt 0:12:32]} 11. Re1 {[%emt 0:06:57]} Nxe5 {[%emt 0:00:54]} 12. dxe5 {[%emt 0:06:49]} Nd7 {[%emt 0:00:09]} 13. cxd5 {[%emt 0:08:19]} cxd5 {[%emt 0:10:54]} 14. e4 {[%emt 0:01:58]} f6 {[%emt 0:18:50]} 15. exd5 {[%emt 0:07:07]} fxe5 {[%emt 0:00:25]} 16. Bxe5 {[%emt 0:02:20]} Nxe5 {[%emt 0:01:14]} 17. Rxe5 {[%emt 0:00:17]} Bc5 {[%emt 0:00:57]} 18. Ne4 {[%emt 0:05:59]} Bxf2+ {[%emt 0:01:02]} 19. Nxf2 {[%emt 0:05:22]} Rxf2 {[%emt 0:00:16]} 20. Qd4 {[%emt 0:00:34]} Rf6 {[%emt 0:11:45]} 21. Rae1 {[%emt 0:01:12]} exd5 {[%emt 0:16:22]} 22. Rxd5 {[%emt 0:03:14]} Qf8 {[%emt 0:03:32]} 23. Rd7 {[%emt 0:01:06]} Bxg2 {[%emt 0:00:49]} 24. Kxg2 {[%emt 0:00:05]} Rc8 {[%emt 0:01:49]} 25. Re2 {[%emt 0:01:36]} a5 {[%emt 0:06:20]} 26. Qd3 {[%emt 0:00:08]} Rfc6 {[%emt 0:01:21]} 27. Ree7 {[%emt 0:01:52]} Rg6 {[%emt 0:00:24]} 28. h4 {[%emt 0:02:00]} Kh8 {[%emt 0:00:35]} 29. h5 {[%emt 0:00:30]} Rgc6 {[%emt 0:00:31]} 30. Rf7 {[%emt 0:01:37]} Rc2+ {[%emt 0:00:25]} 31. Kh3 {[%emt 0:00:24]} Qe8 {[%emt 0:00:27]} 32. Qd4 {[%emt 0:00:34]} Qe6+ {[%emt 0:00:35]} 33. g4 {[%emt 0:00:09]} Rg8 {[%emt 0:00:36]} 34. Rxg7 {[%emt 0:01:13]} Rh2+ {[%emt 0:00:24]} 35. Kxh2 {[%emt 0:00:20]} Qe2+ {[%emt 0:00:14]} 36. Kg3 {[%emt 0:01:59]} Qe1+ {[%emt 0:00:20]} 37. Kf4 {[%emt 0:01:51]} Qf1+ {[%emt 0:00:35]} 38. Kg5 {[%emt 0:01:39]} Qc1+ {[%emt 0:00:17]} 39. Kf5 {[%emt 0:01:10]} Qf1+ {[%emt 0:00:16]} 40. Ke6 {[%emt 0:00:51]} Qe2+ {[%emt 0:00:48]} 41. Kd5 {[%emt 0:05:38]} Qg2+ {[%emt 0:01:22]} 42. Kc4 {[%emt 0:02:05]} Qe2+ {[%emt 0:01:34]} 43. Kb3 {[%emt 0:00:49]} Qf3+ {[%emt 0:01:47]} 44. Qc3 {[%emt 0:01:18]} a4+ {[%emt 0:00:23]} 45. Ka3 {[%emt 0:00:35]} Qxc3+ {[%emt 0:01:31]} 46. bxc3 {[%emt 0:00:04]} Rxg7 {[%emt 0:00:12]} 47. Rd8+ {[%emt 0:00:45]} Rg8 {[%emt 0:00:08]} 48. Rxg8+ {[%emt 0:00:04]} Kxg8 {[%emt 0:00:10]} 49. g5 {[%emt 0:00:16] normal} 1-0

[Event "DVM U20 2019"]
[Site "Braunschweig"]
[Date "2019.12.28"]
[Round "4"]
[White "Düro, Liam"]
[Black "Tiedemann, Fin Niklas"]
[Result "1/2-1/2"]
[ECO "E91"]
[WhiteElo "1841"]
[BlackElo "1936"]
[Annotator "NA"]
[PlyCount "57"]
[EventDate "2019.12.27"]
[EventType "team-tourn"]
[EventRounds "7"]
[EventCountry "GER"]
[SourceTitle "playchess.com"]
[Source "ChessBase"]
[SourceQuality "1"]
[WhiteTeam "SG Trier"]
[BlackTeam "Lübecker SV"]
[TimeControl "40/5400+30:1800+30"]

1. d4 {[%emt 0:00:00]} Nf6 {[%emt 0:00:00]} 2. Nf3 {[%emt 0:00:00]} g6 {[%emt 0:00:00]} 3. c4 {[%emt 0:00:00]} Bg7 {[%emt 0:00:00]} 4. Nc3 {[%emt 0:00:00]} O-O {[%emt 0:00:00]} 5. e4 {[%emt 0:00:14]} d6 {[%emt 0:00:03]} 6. Be2 {[%emt 0:00:34]} Nbd7 {[%emt 0:00:15]} 7. O-O {[%emt 0:00:07]} e5 {[%emt 0:00:09]} 8. dxe5 {[%emt 0:01:02]} dxe5 {[%emt 0:00:07]} 9. b4 {[%emt 0:02:55]} c6 {[%emt 0:00:48]} 10. Bb2 {[%emt 0:01:07]} Qc7 {[%emt 0:00:32]} 11. Qc2 {[%emt 0:01:04]} Re8 {[%emt 0:07:48]} 12. Rfd1 {[%emt 0:01:35]} Nf8 {[%emt 0:04:07]} 13. h3 {[%emt 0:05:31]} Nh5 {[%emt 0:00:25]} 14. c5 {[%emt 0:02:55]} Nf4 {[%emt 0:06:43]} 15. Bc4 {[%emt 0:01:22]} Be6 {[%emt 0:02:51]} 16. Ne2 {[%emt 0:01:45]} Nxe2+ {[%emt 0:08:08]} 17. Qxe2 {[%emt 0:01:08]} Bxc4 {[%emt 0:13:40]} 18. Qxc4 {[%emt 0:00:11]} Rad8 {[%emt 0:00:35]} 19. Qb3 {[%emt 0:05:42]} Ne6 {[%emt 0:03:04]} 20. Nd2 {[%emt 0:04:55]} Nd4 {[%emt 0:13:24]} 21. Bxd4 {[%emt 0:00:40]} exd4 {[%emt 0:00:43]} 22. Qd3 {[%emt 0:01:52]} Qf4 {[%emt 0:05:44]} 23. Re1 {[%emt 0:02:09]} Be5 {[%emt 0:10:18]} 24. g3 {[%emt 0:02:02]} Qh6 {[%emt 0:03:36]} 25. f4 {[%emt 0:00:25]} Bc7 {[%emt 0:01:49]} 26. Kh2 {[%emt 0:01:25]} g5 {[%emt 0:00:34]} 27. fxg5 {[%emt 0:02:12]} Qxg5 {[%emt 0:00:08]} 28. Rf1 {[%emt 0:03:41]} Re6 {[%emt 0:03:47]} 29. Qf3 {[%emt 0:07:27] normal} 1/2-1/2

[Event "DVM U20 2019"]
[Site "Braunschweig"]
[Date "2019.12.28"]
[Round "4"]
[White "Hamkar, Mehran"]
[Black "Meier, Julian"]
[Result "1-0"]
[ECO "B05"]
[WhiteElo "1814"]
[BlackElo "1323"]
[Annotator "NA"]
[PlyCount "54"]
[EventDate "2019.12.27"]
[EventType "team-tourn"]
[EventRounds "7"]
[EventCountry "GER"]
[SourceTitle "playchess.com"]
[Source "ChessBase"]
[SourceQuality "1"]
[WhiteTeam "SF Augsburg"]
[BlackTeam "USV TU Dresden"]
[TimeControl "40/5400+30:1800+30"]

1. e4 {[%emt 0:00:00]} Nf6 {[%emt 0:00:00]} 2. e5 {[%emt 0:00:00]} Nd5 {[%emt 0:00:00]} 3. d4 {[%emt 0:00:00]} d6 {[%emt 0:00:00]} 4. Nf3 {[%emt 0:00:00]} Bg4 {[%emt 0:00:00]} 5. Be2 {[%emt 0:01:03]} dxe5 {[%emt 0:00:32]} 6. Nxe5 {[%emt 0:00:21]} Bxe2 {[%emt 0:00:18]} 7. Qxe2 {[%emt 0:00:08]} e6 {[%emt 0:01:04]} 8. Qb5+ {[%emt 0:09:08]} Nd7 {[%emt 0:00:49]} 9. Nxd7 {[%emt 0:07:50]} Qxd7 {[%emt 0:00:07]} 10. Qxb7 {[%emt 0:00:30]} Nb6 {[%emt 0:00:33]} 11. c3 {[%emt 0:07:31]} c6 {[%emt 0:12:28]} 12. Qxd7+ {[%emt 0:01:30]} Nxd7 {[%emt 0:00:07]} 13. Bf4 {[%emt 0:03:33]} Nb6 {[%emt 0:05:03]} 14. Nd2 {[%emt 0:11:22]} Rd8 {[%emt 0:00:38]} 15. O-O-O {[%emt 0:01:24]} Bd6 {[%emt 0:01:56]} 16. Bxd6 {[%emt 0:02:36]} Rxd6 {[%emt 0:00:06]} 17. Ne4 {[%emt 0:00:40]} Rd5 {[%emt 0:01:21]} 18. Rhe1 {[%emt 0:00:33]} O-O {[%emt 0:07:04]} 19. f4 {[%emt 0:13:43]} Ra5 {[%emt 0:10:47]} 20. Kb1 {[%emt 0:02:51]} Rf5 {[%emt 0:01:54]} 21. g3 {[%emt 0:01:02]} Rb8 {[%emt 0:03:44]} 22. b3 {[%emt 0:02:37]} Kf8 {[%emt 0:06:20]} 23. Nc5 {[%emt 0:05:05]} Kg8 {[%emt 0:07:10]} 24. Kc2 {[%emt 0:02:29]} Rd8 {[%emt 0:05:29]} 25. c4 {[%emt 0:02:14]} Ra8 {[%emt 0:04:43] normal} 26. a4 {[%emt 0:06:45]} a5 {[%emt 0:01:02] normal} 27. Re5 {[%emt 0:00:33] normal} Rxe5 {[%emt 0:03:39] normal} 1-0

[Event "DVM U20 2019"]
[Site "Braunschweig"]
[Date "2019.12.28"]
[Round "4"]
[White "Gallas, Noel"]
[Black "Hoffmann, Lennard"]
[Result "1/2-1/2"]
[ECO "B22"]
[WhiteElo "1785"]
[BlackElo "2059"]
[Annotator "NA"]
[PlyCount "104"]
[EventDate "2019.12.27"]
[EventType "team-tourn"]
[EventRounds "7"]
[EventCountry "GER"]
[SourceTitle "playchess.com"]
[Source "ChessBase"]
[SourceQuality "1"]
[WhiteTeam "SF Essen-Katernberg"]
[BlackTeam "SG Aufbau Elbe Magdeburg"]
[TimeControl "40/5400+30:1800+30"]

1. e4 {[%emt 0:00:00]} c5 {[%emt 0:00:00]} 2. c3 {[%emt 0:00:00]} d5 {[%emt 0:00:00]} 3. exd5 {[%emt 0:00:00]} Qxd5 {[%emt 0:00:00]} 4. d4 {[%emt 0:00:00]} Nc6 {[%emt 0:00:00]} 5. Nf3 {[%emt 0:00:11]} Bg4 {[%emt 0:00:00]} 6. Be2 {[%emt 0:00:05]} e6 {[%emt 0:00:13]} 7. O-O {[%emt 0:00:42]} Nf6 {[%emt 0:04:37]} 8. Be3 {[%emt 0:00:24]} cxd4 {[%emt 0:00:11]} 9. cxd4 {[%emt 0:00:12]} Be7 {[%emt 0:00:16]} 10. Nc3 {[%emt 0:01:18]} Qd6 {[%emt 0:00:10]} 11. a3 {[%emt 0:04:32]} O-O {[%emt 0:00:58]} 12. h3 {[%emt 0:01:29]} Bh5 {[%emt 0:02:37]} 13. Nb5 {[%emt 0:08:43]} Qd7 {[%emt 0:04:03]} 14. g4 {[%emt 0:02:43]} Bg6 {[%emt 0:02:48]} 15. Ne5 {[%emt 0:03:48]} Nxe5 {[%emt 0:05:40]} 16. dxe5 {[%emt 0:03:31]} Nd5 {[%emt 0:01:09]} 17. Nc3 {[%emt 0:11:51]} Rfd8 {[%emt 0:05:32]} 18. Nxd5 {[%emt 0:02:20]} exd5 {[%emt 0:00:47]} 19. Qd4 {[%emt 0:02:38]} b6 {[%emt 0:18:25]} 20. b4 {[%emt 0:01:17]} a5 {[%emt 0:06:46]} 21. Rfd1 {[%emt 0:06:47]} f6 {[%emt 0:03:39]} 22. f4 {[%emt 0:12:13]} fxe5 {[%emt 0:01:19]} 23. fxe5 {[%emt 0:02:33]} Be4 {[%emt 0:09:16]} 24. Bf4 {[%emt 0:18:33]} Qe6 {[%emt 0:02:51]} 25. Kh2 {[%emt 0:08:43]} Rf8 {[%emt 0:04:54]} 26. Bg3 {[%emt 0:01:59]} Rfc8 {[%emt 0:00:38]} 27. Rac1 {[%emt 0:05:40]} Rxc1 {[%emt 0:00:15]} 28. Rxc1 {[%emt 0:00:05]} axb4 {[%emt 0:00:10]} 29. axb4 {[%emt 0:00:25]} Ra2 {[%emt 0:00:47]} 30. Re1 {[%emt 0:01:18]} Qc6 {[%emt 0:04:50]} 31. Kg1 {[%emt 0:00:56]} Qh6 {[%emt 0:00:32]} 32. Bf1 {[%emt 0:00:19]} Qd2 {[%emt 0:05:38]} 33. Qxb6 {[%emt 0:00:36]} Qxb4 {[%emt 0:01:31]} 34. Qxb4 {[%emt 0:00:29]} Bxb4 {[%emt 0:00:19]} 35. Rxe4 {[%emt 0:00:12]} Bc5+ {[%emt 0:00:12]} 36. Kh1 {[%emt 0:00:41]} Ra3 {[%emt 0:00:19]} 37. Re2 {[%emt 0:00:38]} Rxg3 {[%emt 0:00:18]} 38. Bg2 {[%emt 0:00:28]} Rd3 {[%emt 0:00:19]} 39. Re1 {[%emt 0:00:33]} Kf7 {[%emt 0:00:16]} 40. e6+ {[%emt 0:00:31]} Ke7 {[%emt 0:00:11]} 41. Bf1 {[%emt 0:05:21]} Rg3 {[%emt 0:05:39]} 42. Kh2 {[%emt 0:02:23]} Bd6 {[%emt 0:00:49]} 43. Kh1 {[%emt 0:01:24]} d4 {[%emt 0:02:34]} 44. Rd1 {[%emt 0:01:20]} Be5 {[%emt 0:01:32]} 45. Rd3 {[%emt 0:01:08]} Kxe6 {[%emt 0:03:28]} 46. Rxg3 {[%emt 0:00:19]} Bxg3 {[%emt 0:00:07]} 47. Kg2 {[%emt 0:00:13]} Bh4 {[%emt 0:01:12]} 48. Bd3 {[%emt 0:00:25]} h6 {[%emt 0:00:17]} 49. Kf3 {[%emt 0:00:13]} Kf6 {[%emt 0:01:06]} 50. Kf4 {[%emt 0:01:59]} Bf2 {[%emt 0:01:29]} 51. g5+ {[%emt 0:01:35]} hxg5+ {[%emt 0:00:25]} 52. Ke4 {[%emt 0:00:08] normal} Be3 {[%emt 0:07:12] normal} 1/2-1/2

[Event "DVM U20 2019"]
[Site "Braunschweig"]
[Date "2019.12.28"]
[Round "4"]
[White "Grimm, Ling Leander"]
[Black "Jurga, Jonas Vincent"]
[Result "1-0"]
[ECO "B21"]
[WhiteElo "1777"]
[BlackElo "1896"]
[Annotator "NA"]
[PlyCount "57"]
[EventDate "2019.12.27"]
[EventType "team-tourn"]
[EventRounds "7"]
[EventCountry "GER"]
[SourceTitle "playchess.com"]
[Source "ChessBase"]
[SourceQuality "1"]
[WhiteTeam "SK Bebenhausen"]
[BlackTeam "OSG Baden-Baden"]
[TimeControl "40/5400+30:1800+30"]

1. e4 {[%emt 0:00:00]} c5 {[%emt 0:00:00]} 2. d4 {[%emt 0:00:00]} cxd4 {[%emt 0:00:00]} 3. c3 {[%emt 0:00:00]} dxc3 {[%emt 0:00:00]} 4. Nxc3 {[%emt 0:00:04]} Nc6 {[%emt 0:00:00]} 5. Nf3 {[%emt 0:00:12]} d6 {[%emt 0:00:05]} 6. Bc4 {[%emt 0:00:32]} e6 {[%emt 0:00:12]} 7. O-O {[%emt 0:00:21]} a6 {[%emt 0:01:45]} 8. Qe2 {[%emt 0:03:21]} Be7 {[%emt 0:03:00]} 9. Rd1 {[%emt 0:03:27]} Bd7 {[%emt 0:02:31]} 10. Bf4 {[%emt 0:07:50]} e5 {[%emt 0:00:23]} 11. Be3 {[%emt 0:06:41]} Nf6 {[%emt 0:00:28]} 12. a3 {[%emt 0:37:29]} O-O {[%emt 0:01:57]} 13. b4 {[%emt 0:00:23]} b5 {[%emt 0:01:27]} 14. Bd5 {[%emt 0:01:44]} Rc8 {[%emt 0:00:44]} 15. Rac1 {[%emt 0:04:32]} Bg4 {[%emt 0:06:09]} 16. h3 {[%emt 0:01:28]} Bxf3 {[%emt 0:07:59]} 17. Qxf3 {[%emt 0:00:21]} Qd7 {[%emt 0:05:53]} 18. g4 {[%emt 0:03:32]} h6 {[%emt 0:03:38]} 19. Qe2 {[%emt 0:02:33]} Nd8 {[%emt 0:04:06]} 20. f4 {[%emt 0:08:11]} exf4 {[%emt 0:04:17]} 21. Bxf4 {[%emt 0:04:20]} Ne6 {[%emt 0:00:54]} 22. Bg3 {[%emt 0:00:42]} Rfd8 {[%emt 0:06:03]} 23. a4 {[%emt 0:04:00]} bxa4 {[%emt 0:05:51]} 24. Qxa6 {[%emt 0:00:17]} Ng5 {[%emt 0:01:56]} 25. Qf1 {[%emt 0:04:05]} Nxg4 {[%emt 0:08:21]} 26. hxg4 {[%emt 0:01:13]} Qxg4 {[%emt 0:00:01]} 27. Rd3 {[%emt 0:00:23]} Bf6 {[%emt 0:03:16]} 28. Qf5 {[%emt 0:02:04]} Qh5 {[%emt 0:00:31]} 29. Kg2 {[%emt 0:03:00] normal} 1-0

[Event "DVM U20 2019"]
[Site "Braunschweig"]
[Date "2019.12.28"]
[Round "4"]
[White "Celik, Cem"]
[Black "von Angern, Cedric"]
[Result "0-1"]
[ECO "B21"]
[WhiteElo "1767"]
[BlackElo "1867"]
[Annotator "NA"]
[PlyCount "60"]
[EventDate "2019.12.27"]
[EventType "team-tourn"]
[EventRounds "7"]
[EventCountry "GER"]
[SourceTitle "playchess.com"]
[Source "ChessBase"]
[SourceQuality "1"]
[WhiteTeam "SF Essen-Katernberg"]
[BlackTeam "SG Aufbau Elbe Magdeburg"]
[TimeControl "40/5400+30:1800+30"]

1. e4 {[%emt 0:00:00]} c5 {[%emt 0:00:00]} 2. d4 {[%emt 0:00:00]} cxd4 {[%emt 0:00:00]} 3. c3 {[%emt 0:00:00]} Nf6 {[%emt 0:00:18]} 4. e5 {[%emt 0:00:00]} Nd5 {[%emt 0:00:20]} 5. cxd4 {[%emt 0:00:04]} d6 {[%emt 0:03:11]} 6. Nf3 {[%emt 0:01:05]} Nc6 {[%emt 0:00:07]} 7. Bc4 {[%emt 0:05:38]} e6 {[%emt 0:00:40]} 8. Qe2 {[%emt 0:03:06]} Be7 {[%emt 0:05:09]} 9. O-O {[%emt 0:00:40]} O-O {[%emt 0:04:11]} 10. Nc3 {[%emt 0:00:33]} dxe5 {[%emt 0:07:16]} 11. dxe5 {[%emt 0:00:26]} Nxc3 {[%emt 0:00:37]} 12. bxc3 {[%emt 0:00:03]} Qa5 {[%emt 0:01:47]} 13. Bd2 {[%emt 0:01:30]} a6 {[%emt 0:03:52]} 14. Bb3 {[%emt 0:04:48]} Qc7 {[%emt 0:06:37]} 15. Qe4 {[%emt 0:07:59]} Rd8 {[%emt 0:07:04]} 16. Bc2 {[%emt 0:01:49]} g6 {[%emt 0:00:30]} 17. Rfe1 {[%emt 0:01:48]} b6 {[%emt 0:09:19]} 18. Bg5 {[%emt 0:03:26]} Bb7 {[%emt 0:01:20]} 19. Bf6 {[%emt 0:03:16]} Nd4 {[%emt 0:12:33]} 20. Qh4 {[%emt 0:01:47]} Nxf3+ {[%emt 0:01:39]} 21. gxf3 {[%emt 0:00:12]} Bxf6 {[%emt 0:07:21]} 22. exf6 {[%emt 0:00:13]} Qxc3 {[%emt 0:00:44]} 23. Be4 {[%emt 0:00:25]} Bxe4 {[%emt 0:00:55]} 24. fxe4 {[%emt 0:00:13]} h5 {[%emt 0:06:06]} 25. Rac1 {[%emt 0:02:33]} Qd2 {[%emt 0:00:51]} 26. Rcd1 {[%emt 0:06:46]} Qxa2 {[%emt 0:03:49]} 27. Qg5 {[%emt 0:02:29]} Kh7 {[%emt 0:02:22]} 28. Rxd8 {[%emt 0:07:36]} Rxd8 {[%emt 0:00:08]} 29. Qe5 {[%emt 0:01:06]} Qa5 {[%emt 0:07:52]} 30. Qxa5 {[%emt 0:02:23]} bxa5 {[%emt 0:00:01] normal} 0-1

[Event "DVM U20 2019"]
[Site "Braunschweig"]
[Date "2019.12.28"]
[Round "4"]
[White "Doerp, Max Marian"]
[Black "Roos, Elias"]
[Result "0-1"]
[ECO "B38"]
[WhiteElo "1767"]
[BlackElo "1812"]
[Annotator "NA"]
[PlyCount "116"]
[EventDate "2019.12.27"]
[EventType "team-tourn"]
[EventRounds "7"]
[EventCountry "GER"]
[SourceTitle "playchess.com"]
[Source "ChessBase"]
[SourceQuality "1"]
[WhiteTeam "Lübecker SV"]
[BlackTeam "SG Trier"]
[TimeControl "40/5400+30:1800+30"]

1. Nf3 {[%emt 0:00:00]} c5 {[%emt 0:00:00]} 2. c4 {[%emt 0:00:00]} Nc6 {[%emt 0:00:00]} 3. d4 {[%emt 0:00:00]} cxd4 {[%emt 0:00:00]} 4. Nxd4 {[%emt 0:00:05]} g6 {[%emt 0:00:45]} 5. e4 {[%emt 0:00:55]} Bg7 {[%emt 0:00:12]} 6. Be3 {[%emt 0:00:17]} Nf6 {[%emt 0:00:30]} 7. Nc3 {[%emt 0:00:24]} d6 {[%emt 0:01:13]} 8. Be2 {[%emt 0:00:11]} Bd7 {[%emt 0:01:50]} 9. O-O {[%emt 0:00:36]} O-O {[%emt 0:00:46]} 10. Rc1 {[%emt 0:00:44]} Rc8 {[%emt 0:04:11]} 11. b3 {[%emt 0:01:30]} Qa5 {[%emt 0:02:21]} 12. f3 {[%emt 0:02:47]} Rfe8 {[%emt 0:04:34]} 13. Qd2 {[%emt 0:03:23]} a6 {[%emt 0:13:31]} 14. Rfd1 {[%emt 0:01:25]} Nxd4 {[%emt 0:05:19]} 15. Bxd4 {[%emt 0:00:36]} b5 {[%emt 0:04:13]} 16. cxb5 {[%emt 0:08:15]} axb5 {[%emt 0:01:10]} 17. Qb2 {[%emt 0:03:23]} Bh6 {[%emt 0:10:35]} 18. Rc2 {[%emt 0:09:46]} Nh5 {[%emt 0:17:08]} 19. Nd5 {[%emt 0:09:17]} Rxc2 {[%emt 0:04:04]} 20. Qxc2 {[%emt 0:02:35]} Nf4 {[%emt 0:00:37]} 21. b4 {[%emt 0:10:29]} Qa4 {[%emt 0:04:20]} 22. Qxa4 {[%emt 0:02:41]} Nxe2+ {[%emt 0:00:31]} 23. Kf2 {[%emt 0:00:16]} bxa4 {[%emt 0:00:02]} 24. Kxe2 {[%emt 0:00:16]} Bb5+ {[%emt 0:00:47]} 25. Kf2 {[%emt 0:00:52]} Bc4 {[%emt 0:00:56]} 26. a3 {[%emt 0:10:16]} Bb3 {[%emt 0:06:39]} 27. Re1 {[%emt 0:08:20]} Kf8 {[%emt 0:01:02]} 28. Nb6 {[%emt 0:05:24]} Rd8 {[%emt 0:04:47]} 29. g3 {[%emt 0:01:30]} Bd2 {[%emt 0:02:41]} 30. Re2 {[%emt 0:04:13]} Bc1 {[%emt 0:00:27]} 31. Bb2 {[%emt 0:00:28]} Bxb2 {[%emt 0:00:09]} 32. Rxb2 {[%emt 0:00:09]} Ke8 {[%emt 0:00:26]} 33. Rd2 {[%emt 0:03:31]} Rb8 {[%emt 0:01:20]} 34. Nd5 {[%emt 0:00:25]} Rc8 {[%emt 0:00:38]} 35. Ke3 {[%emt 0:04:16]} Rc1 {[%emt 0:02:18]} 36. b5 {[%emt 0:05:16]} Ra1 {[%emt 0:04:30]} 37. b6 {[%emt 0:02:25]} Bxd5 {[%emt 0:00:14]} 38. Rxd5 {[%emt 0:00:55]} Rxa3+ {[%emt 0:00:02]} 39. Kf4 {[%emt 0:01:07]} Rb3 {[%emt 0:00:04]} 40. Ra5 {[%emt 0:00:15]} Rxb6 {[%emt 0:01:55]} 41. Rxa4 {[%emt 0:30:13]} Rb5 {[%emt 0:03:59]} 42. Ra3 {[%emt 0:00:00]} Kd7 {[%emt 0:02:21]} 43. h4 {[%emt 0:00:00]} Ke6 {[%emt 0:00:11]} 44. Re3 {[%emt 0:00:00]} Kf6 {[%emt 0:00:51]} 45. Ra3 {[%emt 0:00:00]} h5 {[%emt 0:03:12]} 46. Ke3 {[%emt 0:00:00]} Rb7 {[%emt 0:00:55]} 47. Rd3 {[%emt 0:00:00]} Rd7 {[%emt 0:00:52]} 48. Ra3 {[%emt 0:00:00]} e6 {[%emt 0:00:39]} 49. Rd3 {[%emt 0:00:00]} Ke5 {[%emt 0:02:51]} 50. Ra3 {[%emt 0:00:00]} d5 {[%emt 0:01:06]} 51. Ra5 {[%emt 0:00:00]} Rb7 {[%emt 0:02:52]} 52. exd5 {[%emt 0:00:00]} exd5 {[%emt 0:00:15]} 53. Ra3 {[%emt 0:00:00]} Rd7 {[%emt 0:03:07]} 54. Ra5 {[%emt 0:00:00]} Rb7 {[%emt 0:01:32]} 55. Ra3 {[%emt 0:00:00]} Rb6 {[%emt 0:00:36]} 56. Ra7 {[%emt 0:05:52]} f6 {[%emt 0:02:50]} 57. Re7+ {[%emt 0:00:42]} Re6 {[%emt 0:00:20]} 58. Rh7 {[%emt 0:01:21]} f5 {[%emt 0:06:29] normal} 0-1